[Event "*** Titled Tuesday Blitz"]
[Site "Chess.com"]
[Date "2020.05.12"]
[Round "6"]
[White "Kensei26"]
[Black "witcher8"]
[Result "1-0"]
[WhiteElo "2230"]
[BlackElo "2366"]
[TimeControl "180+1"]
[EndTime "11:05:51 PDT"]
[Termination "Kensei26 won on time"]

1. e4 {[%clk 0:03:00.9]} 1... c6 {[%clk 0:02:59.9]} 2. d4 {[%clk 0:03:00.7]}
2... d5 {[%clk 0:03:00.8]} 3. e5 {[%clk 0:03:01.1]} 3... Bf5 {[%clk 0:03:00.4]}
4. Nf3 {[%clk 0:03:00.9]} 4... e6 {[%clk 0:03:00.1]} 5. Be2 {[%clk 0:03:01.3]}
5... Nd7 {[%clk 0:02:59]} 6. O-O {[%clk 0:02:54.6]} 6... h6 {[%clk 0:02:59.3]}
7. Nbd2 {[%clk 0:02:51.3]} 7... Ne7 {[%clk 0:02:57.9]} 8. Nb3 {[%clk 0:02:51.2]}
8... g5 {[%clk 0:02:57.2]} 9. a4 {[%clk 0:02:50.7]} 9... a5 {[%clk 0:02:56.8]}
10. Bd2 {[%clk 0:02:50.3]} 10... Bg7 {[%clk 0:02:56.3]} 11. Qe1 {[%clk
0:02:30.3]} 11... Bxc2 {[%clk 0:02:41.3]} 12. Nxa5 {[%clk 0:02:26.4]} 12... Qc7
{[%clk 0:02:15.5]} 13. Rc1 {[%clk 0:02:15.1]} 13... Bg6 {[%clk 0:01:45.2]} 14.
Ra1 {[%clk 0:01:56.8]} 14... b6 {[%clk 0:01:39.1]} 15. Nb3 {[%clk 0:01:55.5]}
15... Bc2 {[%clk 0:01:34.5]} 16. Bd1 {[%clk 0:01:46.9]} 16... Bg6 {[%clk
0:01:08.4]} 17. a5 {[%clk 0:01:43.9]} 17... b5 {[%clk 0:01:04.8]} 18. Bb4 {[%clk
0:01:42.3]} 18... Nf5 {[%clk 0:01:02.9]} 19. Qc3 {[%clk 0:01:40.4]} 19... Bf8
{[%clk 0:01:01.7]} 20. Bc2 {[%clk 0:01:39.8]} 20... Nb8 {[%clk 0:00:23.2]} 21.
Bxf8 {[%clk 0:01:38]} 21... Kxf8 {[%clk 0:00:23.1]} 22. Bxf5 {[%clk 0:01:38]}
22... Bxf5 {[%clk 0:00:22.8]} 23. Nc5 {[%clk 0:01:38]} 23... Na6 {[%clk
0:00:18.8]} 24. b4 {[%clk 0:01:34.8]} 24... Nxc5 {[%clk 0:00:18.2]} 25. Qxc5+
{[%clk 0:01:34.6]} 25... Kg7 {[%clk 0:00:18.6]} 26. Nd2 {[%clk 0:01:34.7]} 26...
Bd3 {[%clk 0:00:16.6]} 27. Rfc1 {[%clk 0:01:30.7]} 27... Rhc8 {[%clk 0:00:14.9]}
28. Qc3 {[%clk 0:01:26]} 28... Bg6 {[%clk 0:00:13.9]} 29. Nb3 {[%clk 0:01:25.9]}
29... Qe7 {[%clk 0:00:12.2]} 30. Nc5 {[%clk 0:01:25.7]} 30... f6 {[%clk
0:00:10.8]} 31. exf6+ {[%clk 0:01:24.6]} 31... Qxf6 {[%clk 0:00:11.7]} 32. Re1
{[%clk 0:01:24.2]} 32... Re8 {[%clk 0:00:11.9]} 33. Re5 {[%clk 0:01:20.2]} 33...
Bf5 {[%clk 0:00:11.1]} 34. a6 {[%clk 0:01:18]} 34... Kg6 {[%clk 0:00:11.1]} 35.
Nd7 {[%clk 0:01:16.2]} 35... Qd8 {[%clk 0:00:09.4]} 36. Nc5 {[%clk 0:01:10.1]}
36... Ra7 {[%clk 0:00:09.2]} 37. Rae1 {[%clk 0:01:08.7]} 37... Rae7 {[%clk
0:00:09]} 38. Nb3 {[%clk 0:01:05.8]} 38... Qb6 {[%clk 0:00:08.8]} 39. Nc5 {[%clk
0:01:05]} 39... Qd8 {[%clk 0:00:09.1]} 40. f3 {[%clk 0:01:02.3]} 40... Qd6
{[%clk 0:00:08.8]} 41. g4 {[%clk 0:01:02.3]} 41... Bxg4 {[%clk 0:00:02.5]} 42.
fxg4 {[%clk 0:00:57.8]} 42... h5 {[%clk 0:00:01.8]} 43. Qd3+ {[%clk 0:00:55.3]}
1-0

[Event "*** Titled Tuesday Blitz"]
[Site "Chess.com"]
[Date "2020.05.12"]
[Round "6"]
[White "tonyq11"]
[Black "canary2016"]
[Result "0-1"]
[WhiteElo "2208"]
[BlackElo "1945"]
[TimeControl "180+1"]
[EndTime "11:05:52 PDT"]
[Termination "canary2016 won by resignation"]

1. d4 {[%clk 0:03:00.9]} 1... d5 {[%clk 0:02:59.7]} 2. c4 {[%clk 0:03:00.6]}
2... c6 {[%clk 0:02:58.9]} 3. cxd5 {[%clk 0:02:59.9]} 3... cxd5 {[%clk
0:02:58.5]} 4. Nc3 {[%clk 0:03:00.6]} 4... Nc6 {[%clk 0:02:58.6]} 5. Nf3 {[%clk
0:03:01.2]} 5... Nf6 {[%clk 0:02:58.7]} 6. Ne5 {[%clk 0:03:01.3]} 6... Qc7
{[%clk 0:02:52.4]} 7. Nxc6 {[%clk 0:02:50.8]} 7... bxc6 {[%clk 0:02:51.8]} 8. g3
{[%clk 0:02:51.2]} 8... Bf5 {[%clk 0:02:51.4]} 9. Bg2 {[%clk 0:02:50.6]} 9... e6
{[%clk 0:02:51.5]} 10. Bf4 {[%clk 0:02:41]} 10... Bd6 {[%clk 0:02:51.3]} 11.
Bxd6 {[%clk 0:02:31.5]} 11... Qxd6 {[%clk 0:02:50.9]} 12. O-O {[%clk 0:02:32.2]}
12... O-O {[%clk 0:02:50.5]} 13. Rc1 {[%clk 0:02:28]} 13... Rac8 {[%clk
0:02:49.7]} 14. Na4 {[%clk 0:02:26.5]} 14... Ne4 {[%clk 0:02:47.1]} 15. f3
{[%clk 0:02:05.6]} 15... Nf6 {[%clk 0:02:45.9]} 16. Nc5 {[%clk 0:02:04.8]} 16...
Rfd8 {[%clk 0:02:44.4]} 17. e4 {[%clk 0:01:56.5]} 17... dxe4 {[%clk 0:02:42]}
18. fxe4 {[%clk 0:01:56.7]} 18... Bg4 {[%clk 0:02:40.8]} 19. e5 {[%clk
0:01:35.1]} 19... Bxd1 {[%clk 0:02:27.7]} 20. exd6 {[%clk 0:01:34.6]} 20... Be2
{[%clk 0:02:24.4]} 21. Rfe1 {[%clk 0:01:15.3]} 21... Bg4 {[%clk 0:02:15.9]} 22.
Nb7 {[%clk 0:01:11]} 22... Rd7 {[%clk 0:02:15.8]} 23. Bxc6 {[%clk 0:01:09.3]}
23... Rxb7 {[%clk 0:01:58.1]} 24. Bxb7 {[%clk 0:01:07.3]} 24... Rd8 {[%clk
0:01:58.1]} 25. Rc6 {[%clk 0:00:39.4]} 25... h6 {[%clk 0:01:55.3]} 26. Ra6
{[%clk 0:00:39.4]} 26... Bf5 {[%clk 0:01:50.6]} 27. Rc1 {[%clk 0:00:26.7]} 27...
Bd3 {[%clk 0:01:47.3]} 28. Rxa7 {[%clk 0:00:22.7]} 28... Rxd6 {[%clk 0:01:46.8]}
29. Bg2 {[%clk 0:00:20.4]} 29... Rxd4 {[%clk 0:01:45.1]} 30. a4 {[%clk 0:00:19]}
30... Bf5 {[%clk 0:01:42.2]} 31. a5 {[%clk 0:00:14.3]} 31... Nd5 {[%clk
0:01:34.6]} 32. Bxd5 {[%clk 0:00:13.6]} 32... Rxd5 {[%clk 0:01:34.1]} 33. Rf1
{[%clk 0:00:06.5]} 33... Rb5 {[%clk 0:01:33]} 34. a6 {[%clk 0:00:02.5]} 34...
Rxb2 {[%clk 0:01:32.5]} 35. Rxf5 {[%clk 0:00:01.6]} 35... exf5 {[%clk
0:01:31.7]} 36. Kf1 {[%clk 0:00:01.9]} 36... Ra2 {[%clk 0:01:30.8]} 37. Ke1
{[%clk 0:00:02.3]} 37... Kh7 {[%clk 0:01:30.6]} 38. Kf1 {[%clk 0:00:02.6]} 38...
Kg6 {[%clk 0:01:30.5]} 39. Ra8 {[%clk 0:00:03.2]} 39... Kf6 {[%clk 0:01:28.8]}
40. Ke1 {[%clk 0:00:03.7]} 40... Rxh2 {[%clk 0:01:26.9]} 41. Kd1 {[%clk
0:00:03.1]} 41... Ra2 {[%clk 0:01:26.3]} 42. a7 {[%clk 0:00:02.5]} 42... Kg6
{[%clk 0:01:24.7]} 43. Ke1 {[%clk 0:00:03]} 43... f6 {[%clk 0:01:23.1]} 44. Kf1
{[%clk 0:00:03.3]} 44... Kg5 {[%clk 0:01:23]} 45. Kg1 {[%clk 0:00:03.8]} 45...
g6 {[%clk 0:01:23]} 46. Rb8 {[%clk 0:00:03.8]} 46... Rxa7 {[%clk 0:01:21]} 47.
Kh2 {[%clk 0:00:04.5]} 47... Ra2+ {[%clk 0:01:20.4]} 48. Kh3 {[%clk 0:00:05.1]}
48... Kh5 {[%clk 0:01:18.4]} 49. Rb3 {[%clk 0:00:03.7]} 49... g5 {[%clk
0:01:17.6]} 50. g4+ {[%clk 0:00:04.1]} 50... fxg4+ {[%clk 0:01:17.2]} 51. Kg3
{[%clk 0:00:04.6]} 51... f5 {[%clk 0:01:14.8]} 52. Rb2 {[%clk 0:00:04.4]} 52...
f4+ {[%clk 0:01:14.6]} 53. Kg2 {[%clk 0:00:03.8]} 53... Rxb2+ {[%clk 0:01:14.6]}
0-1

[Event "*** Titled Tuesday Blitz"]
[Site "Chess.com"]
[Date "2020.05.12"]
[Round "6"]
[White "KerryStead"]
[Black "m-garcett"]
[Result "1-0"]
[WhiteElo "2111"]
[BlackElo "1976"]
[TimeControl "180+1"]
[EndTime "11:05:52 PDT"]
[Termination "KerryStead won by resignation"]

1. d4 {[%clk 0:03:00.9]} 1... Nf6 {[%clk 0:02:57.1]} 2. f3 {[%clk 0:03:00.6]}
2... g6 {[%clk 0:02:52.8]} 3. e4 {[%clk 0:02:59.8]} 3... d6 {[%clk 0:02:53]} 4.
Be3 {[%clk 0:02:59.3]} 4... Bg7 {[%clk 0:02:52.7]} 5. Qd2 {[%clk 0:02:59.2]}
5... O-O {[%clk 0:02:48.6]} 6. a4 {[%clk 0:02:58]} 6... Nc6 {[%clk 0:02:45.8]}
7. Ne2 {[%clk 0:02:55.8]} 7... a6 {[%clk 0:02:40.8]} 8. g4 {[%clk 0:02:54.9]}
8... Rb8 {[%clk 0:02:25.6]} 9. Ng3 {[%clk 0:02:53]} 9... b5 {[%clk 0:02:24]} 10.
axb5 {[%clk 0:02:51.9]} 10... axb5 {[%clk 0:02:23.8]} 11. h4 {[%clk 0:02:50.1]}
11... h5 {[%clk 0:02:22]} 12. gxh5 {[%clk 0:02:48.1]} 12... Nxh5 {[%clk
0:02:18.4]} 13. Nxh5 {[%clk 0:02:47.4]} 13... gxh5 {[%clk 0:02:19.3]} 14. Rg1
{[%clk 0:02:46.4]} 14... Kh7 {[%clk 0:02:04.1]} 15. c3 {[%clk 0:02:42.6]} 15...
Rg8 {[%clk 0:01:54.7]} 16. Bd3 {[%clk 0:02:40.7]} 16... e5 {[%clk 0:01:47.2]}
17. Bg5 {[%clk 0:02:36.9]} 17... Bf6 {[%clk 0:01:40.3]} 18. d5 {[%clk
0:02:34.7]} 18... Bxg5 {[%clk 0:01:35.7]} 19. hxg5 {[%clk 0:02:31.7]} 19... Ne7
{[%clk 0:01:22]} 20. Na3 {[%clk 0:02:21.9]} 20... b4 {[%clk 0:01:16.9]} 21. cxb4
{[%clk 0:02:18.8]} 21... Ng6 {[%clk 0:01:17]} 22. Nc4 {[%clk 0:02:07.9]} 22...
Nf4 {[%clk 0:01:11.2]} 23. g6+ {[%clk 0:01:49.2]} 23... Rxg6 {[%clk 0:01:02.2]}
24. Rxg6 {[%clk 0:01:47.9]} 24... Qh4+ {[%clk 0:00:54.4]} 25. Kd1 {[%clk
0:01:41.8]} 25... fxg6 {[%clk 0:00:52.7]} 26. Kc2 {[%clk 0:01:38.5]} 26... Qg3
{[%clk 0:00:36.6]} 27. Be2 {[%clk 0:01:33.8]} 27... Nxe2 {[%clk 0:00:33.2]} 28.
Qxe2 {[%clk 0:01:33.3]} 28... Rxb4 {[%clk 0:00:33.1]} 29. Nd2 {[%clk 0:01:29]}
29... Bh3 {[%clk 0:00:18.3]} 30. Ra7 {[%clk 0:01:26.7]} 30... Qg2 {[%clk
0:00:16.8]} 31. Rxc7+ {[%clk 0:01:25.3]} 31... Kh6 {[%clk 0:00:17.2]} 32. Qe3+
{[%clk 0:01:22.4]} 32... Qg5 {[%clk 0:00:16.2]} 33. Qa7 {[%clk 0:01:20.7]} 33...
Rxb2+ {[%clk 0:00:11.9]} 34. Kxb2 {[%clk 0:01:20.4]} 34... Qxd2+ {[%clk
0:00:11.7]} 35. Kb3 {[%clk 0:01:17.5]} 35... Qd3+ {[%clk 0:00:10]} 36. Rc3
{[%clk 0:01:12.9]} 36... Qb1+ {[%clk 0:00:09.3]} 37. Ka4 {[%clk 0:01:04.9]}
37... Qa2+ {[%clk 0:00:05.9]} 38. Ra3 {[%clk 0:01:02.6]} 38... Qc4+ {[%clk
0:00:06.1]} 39. Ka5 {[%clk 0:01:02.6]} 39... Bf1 {[%clk 0:00:05.8]} 40. Qb6
{[%clk 0:00:59.7]} 40... Qc3+ {[%clk 0:00:04.2]} 41. Rxc3 {[%clk 0:00:59]} 1-0

[Event "*** Titled Tuesday Blitz"]
[Site "Chess.com"]
[Date "2020.05.12"]
[Round "6"]
[White "LiemLe"]
[Black "MikaelyanArman"]
[Result "1-0"]
[WhiteElo "2953"]
[BlackElo "2680"]
[TimeControl "180+1"]
[EndTime "11:05:53 PDT"]
[Termination "LiemLe won by checkmate"]

1. c4 {[%clk 0:03:00.9]} 1... Nf6 {[%clk 0:02:56.8]} 2. Nc3 {[%clk 0:03:00.9]}
2... g6 {[%clk 0:02:53.4]} 3. e4 {[%clk 0:03:00.3]} 3... d6 {[%clk 0:02:53.5]}
4. d4 {[%clk 0:03:00.2]} 4... Bg7 {[%clk 0:02:53.5]} 5. Nf3 {[%clk 0:03:00.8]}
5... O-O {[%clk 0:02:53.6]} 6. h3 {[%clk 0:03:01.5]} 6... e5 {[%clk 0:02:44.9]}
7. d5 {[%clk 0:03:01.8]} 7... a5 {[%clk 0:02:44]} 8. g4 {[%clk 0:03:01.9]} 8...
Na6 {[%clk 0:02:40.3]} 9. Be3 {[%clk 0:03:02.5]} 9... Nd7 {[%clk 0:02:36.5]} 10.
Rg1 {[%clk 0:02:52.2]} 10... Ndc5 {[%clk 0:02:32.8]} 11. a3 {[%clk 0:02:43.2]}
11... a4 {[%clk 0:02:22.4]} 12. Nd2 {[%clk 0:02:40.9]} 12... Bd7 {[%clk
0:02:19.1]} 13. Qc2 {[%clk 0:02:21.2]} 13... Bf6 {[%clk 0:02:05.8]} 14. g5
{[%clk 0:02:19.9]} 14... Bg7 {[%clk 0:01:58.3]} 15. h4 {[%clk 0:02:08.1]} 15...
f5 {[%clk 0:01:55.6]} 16. O-O-O {[%clk 0:02:02.1]} 16... c6 {[%clk 0:01:26.6]}
17. Kb1 {[%clk 0:02:00.5]} 17... cxd5 {[%clk 0:01:22.4]} 18. cxd5 {[%clk
0:01:52.1]} 18... Rc8 {[%clk 0:01:14.3]} 19. Rc1 {[%clk 0:01:10.2]} 19... b5
{[%clk 0:01:06.5]} 20. Bxb5 {[%clk 0:01:05.7]} 20... Nxe4 {[%clk 0:00:50.2]} 21.
Ndxe4 {[%clk 0:00:51]} 21... Bxb5 {[%clk 0:00:49.6]} 22. Nxd6 {[%clk 0:00:51.1]}
22... Rxc3 {[%clk 0:00:41.1]} 23. Qxc3 {[%clk 0:00:52]} 23... Qxd6 {[%clk
0:00:40.9]} 24. Rgd1 {[%clk 0:00:48.8]} 24... e4 {[%clk 0:00:32.6]} 25. Bd4
{[%clk 0:00:47.4]} 25... Bxd4 {[%clk 0:00:29.1]} 26. Rxd4 {[%clk 0:00:48.3]}
26... Bd3+ {[%clk 0:00:28]} 27. Ka1 {[%clk 0:00:39.6]} 27... Rd8 {[%clk
0:00:21.4]} 28. Qa5 {[%clk 0:00:35.9]} 28... Rd7 {[%clk 0:00:14.5]} 29. Qxa4
{[%clk 0:00:28.8]} 29... Kg7 {[%clk 0:00:12.9]} 30. Rc6 {[%clk 0:00:27.3]} 30...
Qh2 {[%clk 0:00:10.8]} 31. Rxd3 {[%clk 0:00:25.1]} 31... exd3 {[%clk 0:00:11.7]}
32. Qd4+ {[%clk 0:00:21.3]} 32... Kg8 {[%clk 0:00:11.2]} 33. Rc8+ {[%clk
0:00:20.6]} 33... Kf7 {[%clk 0:00:10.7]} 34. Qf6# {[%clk 0:00:20.6]} 1-0

[Event "*** Titled Tuesday Blitz"]
[Site "Chess.com"]
[Date "2020.05.12"]
[Round "6"]
[White "venus02"]
[Black "bmt011"]
[Result "0-1"]
[WhiteElo "2279"]
[BlackElo "2084"]
[TimeControl "180+1"]
[EndTime "11:05:53 PDT"]
[Termination "bmt011 won by resignation"]

1. d4 {[%clk 0:03:00.9]} 1... Nf6 {[%clk 0:02:59.4]} 2. c4 {[%clk 0:03:00.6]}
2... e6 {[%clk 0:02:59.8]} 3. Nc3 {[%clk 0:03:00.3]} 3... Bb4 {[%clk 0:03:00.3]}
4. e3 {[%clk 0:02:57.6]} 4... O-O {[%clk 0:02:54.1]} 5. Ne2 {[%clk 0:02:56.2]}
5... d5 {[%clk 0:02:53.5]} 6. a3 {[%clk 0:02:55.3]} 6... Be7 {[%clk 0:02:53]} 7.
cxd5 {[%clk 0:02:55]} 7... exd5 {[%clk 0:02:52]} 8. g3 {[%clk 0:02:55.1]} 8...
b6 {[%clk 0:02:51.8]} 9. Bg2 {[%clk 0:02:55.1]} 9... Bb7 {[%clk 0:02:52.3]} 10.
O-O {[%clk 0:02:55.1]} 10... Bd6 {[%clk 0:02:44.6]} 11. Nf4 {[%clk 0:02:54.1]}
11... Bxf4 {[%clk 0:02:39.4]} 12. gxf4 {[%clk 0:02:52.7]} 12... Re8 {[%clk
0:02:37.6]} 13. Kh1 {[%clk 0:02:51.6]} 13... Nbd7 {[%clk 0:02:36.6]} 14. Rg1
{[%clk 0:02:51.6]} 14... Nf8 {[%clk 0:02:36.4]} 15. Bh3 {[%clk 0:02:51.3]} 15...
Ng6 {[%clk 0:02:29.5]} 16. f5 {[%clk 0:02:49.8]} 16... Nf8 {[%clk 0:02:21]} 17.
Bd2 {[%clk 0:02:29.3]} 17... c5 {[%clk 0:02:18.1]} 18. Ne2 {[%clk 0:02:26.8]}
18... Ne4 {[%clk 0:02:13.3]} 19. Be1 {[%clk 0:02:25.2]} 19... Qh4 {[%clk
0:02:13.4]} 20. Nf4 {[%clk 0:02:04.1]} 20... Nxf2+ {[%clk 0:02:01.3]} 21. Bxf2
{[%clk 0:02:03.1]} 21... Qxf2 {[%clk 0:02:00.2]} 22. Qg4 {[%clk 0:01:18.7]}
22... g6 {[%clk 0:01:55.5]} 23. f6 {[%clk 0:00:42.9]} 23... Bc8 {[%clk
0:01:19.9]} 24. Qg5 {[%clk 0:00:28.7]} 24... Bxh3 {[%clk 0:01:08.6]} 25. Rg3
{[%clk 0:00:10.9]} 25... Bf5 {[%clk 0:00:57]} 26. Qh6 {[%clk 0:00:04.7]} 26...
Be4+ {[%clk 0:00:56.9]} 27. Ng2 {[%clk 0:00:03.6]} 27... Qxf6 {[%clk 0:00:54.3]}
28. Kg1 {[%clk 0:00:03.7]} 28... Bxg2 {[%clk 0:00:47.6]} 29. Rxg2 {[%clk
0:00:02.8]} 29... cxd4 {[%clk 0:00:44.9]} 30. Rf1 {[%clk 0:00:01.9]} 30... Qe5
{[%clk 0:00:35.4]} 31. h4 {[%clk 0:00:01.3]} 31... Qxe3+ {[%clk 0:00:35.1]} 32.
Qxe3 {[%clk 0:00:01.4]} 32... dxe3 {[%clk 0:00:36]} 0-1

[Event "*** Titled Tuesday Blitz"]
[Site "Chess.com"]
[Date "2020.05.12"]
[Round "6"]
[White "Nastya_Rakhmangulova"]
[Black "Jbd735"]
[Result "0-1"]
[WhiteElo "2282"]
[BlackElo "2443"]
[TimeControl "180+1"]
[EndTime "11:05:55 PDT"]
[Termination "Jbd735 won by resignation"]

1. e4 {[%clk 0:03:00.9]} 1... e5 {[%clk 0:02:59.9]} 2. Nf3 {[%clk 0:03:01.1]}
2... Nc6 {[%clk 0:03:00.2]} 3. c3 {[%clk 0:03:01.8]} 3... d5 {[%clk 0:02:55.8]}
4. Qa4 {[%clk 0:03:01.9]} 4... f6 {[%clk 0:02:55.1]} 5. Bb5 {[%clk 0:03:02.2]}
5... Ne7 {[%clk 0:02:47.2]} 6. exd5 {[%clk 0:03:02.7]} 6... Qxd5 {[%clk
0:02:44.7]} 7. O-O {[%clk 0:03:03.6]} 7... Bd7 {[%clk 0:02:41.7]} 8. d4 {[%clk
0:03:03.4]} 8... e4 {[%clk 0:02:24.9]} 9. Nfd2 {[%clk 0:03:02.2]} 9... f5 {[%clk
0:02:13]} 10. Re1 {[%clk 0:02:58]} 10... O-O-O {[%clk 0:02:11.9]} 11. f3 {[%clk
0:02:57.5]} 11... exf3 {[%clk 0:01:57.5]} 12. Nxf3 {[%clk 0:02:58.4]} 12... Ng6
{[%clk 0:01:52.2]} 13. c4 {[%clk 0:01:31.3]} 13... Qf7 {[%clk 0:01:51]} 14. d5
{[%clk 0:01:31.4]} 14... Bc5+ {[%clk 0:01:50.5]} 15. Be3 {[%clk 0:01:27.9]}
15... Bxe3+ {[%clk 0:01:47.1]} 16. Rxe3 {[%clk 0:01:28.8]} 16... Nb8 {[%clk
0:01:36]} 17. Bxd7+ {[%clk 0:01:20.7]} 17... Rxd7 {[%clk 0:01:29.3]} 18. Qxa7
{[%clk 0:01:20.8]} 18... Re8 {[%clk 0:01:29.5]} 19. Nc3 {[%clk 0:01:18.2]} 19...
Rde7 {[%clk 0:01:20.2]} 20. Rae1 {[%clk 0:01:12]} 20... Nf4 {[%clk 0:01:09.2]}
21. Rxe7 {[%clk 0:01:08.2]} 21... Rxe7 {[%clk 0:01:09]} 22. Rxe7 {[%clk
0:00:44.5]} 22... Qxe7 {[%clk 0:01:09.9]} 23. Qd4 {[%clk 0:00:43.9]} 23... Ng6
{[%clk 0:00:51.1]} 24. Nb5 {[%clk 0:00:31.3]} 24... Nd7 {[%clk 0:00:39.6]} 25.
d6 {[%clk 0:00:23.6]} 25... cxd6 {[%clk 0:00:24.9]} 26. Nxd6+ {[%clk 0:00:24.5]}
26... Kb8 {[%clk 0:00:23.2]} 27. Nxf5 {[%clk 0:00:24.5]} 27... Qf7 {[%clk
0:00:17.3]} 28. Nxg7 {[%clk 0:00:20]} 28... Nf4 {[%clk 0:00:16.6]} 29. Ng5
{[%clk 0:00:06.3]} 29... Ne2+ {[%clk 0:00:15.4]} 30. Kh1 {[%clk 0:00:06]} 30...
Qf1+ {[%clk 0:00:14.7]} 0-1

[Event "*** Titled Tuesday Blitz"]
[Site "Chess.com"]
[Date "2020.05.12"]
[Round "6"]
[White "cukus"]
[Black "Kobalia"]
[Result "0-1"]
[WhiteElo "2508"]
[BlackElo "2780"]
[TimeControl "180+1"]
[EndTime "11:05:58 PDT"]
[Termination "Kobalia won on time"]

1. e4 {[%clk 0:03:00.9]} 1... c5 {[%clk 0:02:58.6]} 2. Nf3 {[%clk 0:03:00.8]}
2... d6 {[%clk 0:02:59]} 3. d4 {[%clk 0:03:01]} 3... cxd4 {[%clk 0:02:59.3]} 4.
Nxd4 {[%clk 0:03:01.9]} 4... Nf6 {[%clk 0:02:59.6]} 5. Nc3 {[%clk 0:03:02.3]}
5... a6 {[%clk 0:03:00.2]} 6. Be3 {[%clk 0:03:02.7]} 6... e5 {[%clk 0:02:53.1]}
7. Nb3 {[%clk 0:03:02.6]} 7... Be7 {[%clk 0:02:53.5]} 8. f3 {[%clk 0:03:03]}
8... Be6 {[%clk 0:02:53.5]} 9. Qd2 {[%clk 0:03:03.4]} 9... O-O {[%clk 0:02:54]}
10. O-O-O {[%clk 0:03:03.7]} 10... Nbd7 {[%clk 0:02:53.4]} 11. g4 {[%clk
0:03:02.9]} 11... b5 {[%clk 0:02:53.4]} 12. g5 {[%clk 0:03:02.7]} 12... Nh5
{[%clk 0:02:53]} 13. Nd5 {[%clk 0:03:01.6]} 13... Bxd5 {[%clk 0:02:53.2]} 14.
exd5 {[%clk 0:03:02.1]} 14... f6 {[%clk 0:02:53.5]} 15. g6 {[%clk 0:03:01.4]}
15... hxg6 {[%clk 0:02:52.8]} 16. Na5 {[%clk 0:02:55.5]} 16... Qe8 {[%clk
0:02:52.2]} 17. Kb1 {[%clk 0:02:47.6]} 17... f5 {[%clk 0:02:45.9]} 18. Rc1
{[%clk 0:02:11.9]} 18... Bd8 {[%clk 0:02:41.6]} 19. Nc6 {[%clk 0:02:11.5]} 19...
Bb6 {[%clk 0:02:39.5]} 20. c4 {[%clk 0:01:49.7]} 20... bxc4 {[%clk 0:02:28.9]}
21. Bxc4 {[%clk 0:01:34.8]} 21... Bxe3 {[%clk 0:02:18.5]} 22. Qxe3 {[%clk
0:01:35.1]} 22... Nf4 {[%clk 0:02:17.7]} 23. Rhg1 {[%clk 0:01:21.9]} 23... a5
{[%clk 0:02:14.9]} 24. h4 {[%clk 0:01:12.7]} 24... a4 {[%clk 0:02:09.8]} 25. Rg5
{[%clk 0:00:59.1]} 25... Kh7 {[%clk 0:02:02.9]} 26. Ka1 {[%clk 0:00:47.8]} 26...
Nf6 {[%clk 0:01:55]} 27. Qd2 {[%clk 0:00:43.6]} 27... Qf7 {[%clk 0:01:37]} 28.
Rg3 {[%clk 0:00:35.9]} 28... N4h5 {[%clk 0:01:29.8]} 29. Rg5 {[%clk 0:00:34.8]}
29... e4 {[%clk 0:01:16.7]} 30. f4 {[%clk 0:00:25.8]} 30... a3 {[%clk
0:01:08.4]} 31. b3 {[%clk 0:00:25.2]} 31... Ng4 {[%clk 0:01:08.2]} 32. Nd4
{[%clk 0:00:22.1]} 32... Qf6 {[%clk 0:01:05.5]} 33. Qc3 {[%clk 0:00:22.3]} 33...
Nxf4 {[%clk 0:01:00.7]} 34. Rg1 {[%clk 0:00:20.1]} 34... Nh3 {[%clk 0:00:56.5]}
35. Rh1 {[%clk 0:00:17]} 35... Nhf2 {[%clk 0:00:47.7]} 36. Rf1 {[%clk
0:00:12.9]} 36... e3 {[%clk 0:00:47.2]} 37. Rxg4 {[%clk 0:00:03.5]} 37... fxg4
{[%clk 0:00:42.1]} 38. Qxe3 {[%clk 0:00:03.2]} 38... Rae8 {[%clk 0:00:40.6]} 0-1

[Event "*** Titled Tuesday Blitz"]
[Site "Chess.com"]
[Date "2020.05.12"]
[Round "6"]
[White "GodDMuhammad"]
[Black "csati17"]
[Result "0-1"]
[WhiteElo "2284"]
[BlackElo "2540"]
[TimeControl "180+1"]
[EndTime "11:05:59 PDT"]
[Termination "csati17 won by resignation"]

1. f4 {[%clk 0:03:00.9]} 1... b6 {[%clk 0:02:58.9]} 2. d3 {[%clk 0:02:58]} 2...
Bb7 {[%clk 0:02:58.8]} 3. Nd2 {[%clk 0:02:58.5]} 3... g6 {[%clk 0:02:55.8]} 4.
Ngf3 {[%clk 0:02:58.7]} 4... Bg7 {[%clk 0:02:55.9]} 5. g3 {[%clk 0:02:59.1]}
5... d6 {[%clk 0:02:36.5]} 6. Bg2 {[%clk 0:02:59]} 6... Nd7 {[%clk 0:02:36.9]}
7. c3 {[%clk 0:02:58.7]} 7... c5 {[%clk 0:02:34.3]} 8. O-O {[%clk 0:02:57.9]}
8... Qc7 {[%clk 0:02:34.3]} 9. Qc2 {[%clk 0:02:58.2]} 9... h5 {[%clk 0:02:33.2]}
10. h3 {[%clk 0:02:57.5]} 10... Nh6 {[%clk 0:02:29.9]} 11. e4 {[%clk 0:02:57]}
11... Ng8 {[%clk 0:01:58.5]} 12. Rf2 {[%clk 0:02:32.5]} 12... e5 {[%clk
0:01:43.9]} 13. Nc4 {[%clk 0:02:14.9]} 13... b5 {[%clk 0:01:38.2]} 14. Na3
{[%clk 0:02:12.5]} 14... a6 {[%clk 0:01:38.6]} 15. fxe5 {[%clk 0:02:11.7]} 15...
dxe5 {[%clk 0:01:31.2]} 16. Be3 {[%clk 0:02:08.4]} 16... Ngf6 {[%clk 0:01:24.3]}
17. Raf1 {[%clk 0:02:06.4]} 17... c4 {[%clk 0:01:16.2]} 18. dxc4 {[%clk
0:01:56.8]} 18... Nxe4 {[%clk 0:01:13.5]} 19. cxb5 {[%clk 0:01:38.5]} 19... Nxf2
{[%clk 0:01:12]} 20. Qxf2 {[%clk 0:01:36.3]} 20... O-O {[%clk 0:01:05.5]} 21. b6
{[%clk 0:01:24.8]} 21... Qd6 {[%clk 0:00:57.8]} 22. c4 {[%clk 0:01:23.6]} 22...
e4 {[%clk 0:00:50.9]} 23. c5 {[%clk 0:01:18.7]} 23... Qe7 {[%clk 0:00:50.9]} 24.
Ng5 {[%clk 0:01:06.9]} 24... Rac8 {[%clk 0:00:43.9]} 25. b4 {[%clk 0:01:05.1]}
25... Ne5 {[%clk 0:00:34]} 26. Nxe4 {[%clk 0:00:59.9]} 26... Nd3 {[%clk
0:00:29.1]} 27. Qf3 {[%clk 0:00:44]} 27... Rce8 {[%clk 0:00:27.2]} 28. Bd2
{[%clk 0:00:17.6]} 28... Bxe4 {[%clk 0:00:22]} 29. Qxe4 {[%clk 0:00:18]} 29...
Qxe4 {[%clk 0:00:22.9]} 30. Bxe4 {[%clk 0:00:18.7]} 30... Rxe4 {[%clk
0:00:23.6]} 31. c6 {[%clk 0:00:17.1]} 31... Bd4+ {[%clk 0:00:23.8]} 32. Be3
{[%clk 0:00:14.5]} 32... Bxe3+ {[%clk 0:00:23.7]} 33. Kg2 {[%clk 0:00:15.1]}
33... Bxb6 {[%clk 0:00:23.6]} 34. Kf3 {[%clk 0:00:15.2]} 34... Re3+ {[%clk
0:00:23.6]} 35. Kg2 {[%clk 0:00:14.9]} 35... Rc8 {[%clk 0:00:22.7]} 36. Nc4
{[%clk 0:00:14.9]} 36... Rxc6 {[%clk 0:00:22.7]} 37. Nxe3 {[%clk 0:00:15]} 37...
Bxe3 {[%clk 0:00:22.5]} 38. Rf3 {[%clk 0:00:15.9]} 38... Ne1+ {[%clk 0:00:22.8]}
39. Kf1 {[%clk 0:00:16.3]} 39... Nxf3 {[%clk 0:00:23.5]} 40. Ke2 {[%clk
0:00:17]} 0-1